bitfinex/quotes_BTCUSD_20250114
["timestamp","ask_amount","ask_price","bid_price","bid_amount"]
[1736861124855,0.00604,96045.0,96035.0,0.208257]
[1736861125083,0.01104,96044.0,96035.0,0.208257]
[1736861125284,0.01104,96044.0,96038.0,0.208249]
[1736861125460,0.01091469,96044.0,96038.0,0.208249]
[1736861125661,0.01191469,96044.0,96041.0,0.208242]
[1736861126077,0.01091469,96044.0,96041.0,0.208242]
[1736861126478,0.00591469,96044.0,96041.0,0.208242]
[1736861127068,0.01091469,96044.0,96035.0,0.001]
[1736861127270,0.01091469,96044.0,96036.0,0.208255]
[1736861127589,0.00591469,96044.0,96036.0,0.208255]
[1736861127992,0.00691469,96044.0,96036.0,0.208255]
[1736861128394,0.01191469,96044.0,96041.0,0.001]
[1736861129273,0.006,96044.0,96041.0,0.001]
[1736861129403,0.00604,96043.0,96041.0,0.001]
[1736861129627,0.00604,96042.0,96035.0,0.208255]
[1736861130065,0.005,96044.0,96036.0,0.001]
[1736861130263,0.00604,96043.0,96035.0,0.208255]
[1736861130756,0.00604,96043.0,96041.0,0.001]
[1736861130936,0.00604,96043.0,96035.0,0.208255]
[1736861131133,0.00604,96043.0,96035.0,0.416511]
[1736861131485,0.00604,96043.0,96034.0,0.0008541]
[1736861131686,0.291642,96042.0,96034.0,0.0008541]
[1736861132004,0.15372692,96041.0,96034.0,0.0008541]
[1736861132747,0.24650107,96041.0,96034.0,0.0008541]
[1736861133919,0.24650107,96041.0,96034.0,0.0018541]
[1736861133920,0.30103115,96035.0,96034.0,0.0018541]
[1736861134367,0.30087363,96035.0,96034.0,0.0018541]
[1736861135465,0.30287363,96035.0,96034.0,0.0018541]
[1736861136088,0.30287363,96035.0,96034.0,0.0008541]
[1736861136302,0.30987363,96035.0,96034.0,0.0008541]
[1736861136734,0.217257,96035.0,96034.0,0.0008541]
[1736861143388,0.223297,96035.0,96034.0,0.0008541]
[1736861145779,0.33930249,96035.0,96034.0,0.0008541]
[1736861146453,0.33326249,96035.0,96034.0,0.0008541]
[1736861146711,0.33930249,96035.0,96034.0,0.0008541]
[1736861146914,0.246297,96035.0,96034.0,0.0008541]
[1736861149744,0.03804,96035.0,96034.0,0.0008541]
[1736861150172,0.03776406,96035.0,96034.0,0.0008541]
[1736861150389,0.24602106,96035.0,96034.0,0.0008541]
[1736861150594,0.23902106,96035.0,96034.0,0.0008541]
[1736861150896,0.237297,96035.0,96034.0,0.0008541]
[1736861151105,0.245297,96035.0,96034.0,0.0018541]
[1736861151317,0.237297,96035.0,96034.0,0.0008541]
[1736861151594,0.243297,96035.0,96034.0,0.0018541]
[1736861151817,0.245297,96035.0,96034.0,0.0018541]
[1736861153136,0.470897,96035.0,96034.0,0.0018541]
[1736861154500,0.81218971,96035.0,96034.0,0.0008541]
[1736861154641,0.82622971,96035.0,96034.0,0.0018541]
[1736861155043,0.82422971,96035.0,96034.0,0.0018541]
[1736861156874,0.82622971,96035.0,96034.0,0.0018541]
[1736861157413,0.82422971,96035.0,96034.0,0.0018541]
[1736861157710,0.82622971,96035.0,96034.0,0.0018541]
[1736861158380,1.01188775,96035.0,96034.0,0.0018541]
[1736861159307,0.82622971,96035.0,96034.0,0.0018541]
[1736861160915,0.75062971,96035.0,96034.0,0.0018541]
[1736861161084,0.75242186,96035.0,96034.0,0.0018541]
[1736861168907,0.9380799,96035.0,96034.0,0.0018541]
[1736861170540,1.04230682,96035.0,96034.0,0.0018541]
[1736861170708,1.41314878,96035.0,96034.0,0.0018541]
[1736861170895,1.44414262,96035.0,96034.0,0.0018541]
[1736861171507,1.89341825,96035.0,96034.0,0.0018541]
[1736861172355,1.89141825,96035.0,96034.0,0.0018541]
[1736861172668,1.79141825,96035.0,96034.0,0.0018541]
[1736861172849,1.79641825,96035.0,96034.0,0.0018541]
[1736861173056,0.173,96034.0,96025.0,0.0008536]
[1736861173208,0.231276,96026.0,96025.0,0.0008536]
[1736861173412,0.33550292,96026.0,96025.0,0.0008536]
[1736861173609,0.231276,96026.0,96025.0,0.0008536]
[1736861173832,0.237316,96026.0,96025.0,0.0008536]
[1736861174435,0.246316,96026.0,96025.0,0.0008536]
[1736861174637,0.38567121,96026.0,96025.0,0.0008536]
[1736861175482,0.246316,96026.0,96025.0,0.0008536]
[1736861176115,0.250316,96026.0,96025.0,0.0008536]
[1736861176395,0.01904,96026.0,96025.0,0.0008536]
[1736861176751,0.036,96026.0,96025.0,0.0008536]
[1736861176953,0.03804,96026.0,96025.0,0.0008536]
[1736861177163,0.04536942,96026.0,96025.0,0.0008536]
[1736861177356,0.04836942,96026.0,96025.0,0.0008536]
[1736861177558,0.05436942,96026.0,96025.0,0.0008536]
[1736861178741,0.05136942,96026.0,96025.0,0.0008536]
[1736861178940,0.05336942,96026.0,96025.0,0.0008536]
[1736861179419,0.04536942,96026.0,96025.0,0.0008536]
[1736861179638,0.05136942,96026.0,96025.0,0.0008536]
[1736861179876,0.05336942,96026.0,96025.0,0.0008536]
[1736861180826,0.15759634,96026.0,96025.0,0.0008536]
[1736861182421,0.76673414,96026.0,96025.0,0.0008536]
[1736861183546,0.5809272,96026.0,96025.0,0.0008536]
[1736861184826,0.5789272,96026.0,96025.0,0.0008536]
[1736861185280,0.5829272,96026.0,96025.0,0.0008536]
[1736861185606,0.5789272,96026.0,96025.0,0.0008536]
[1736861185980,0.5834272,96026.0,96025.0,0.0008536]
[1736861186335,0.5964272,96026.0,96025.0,0.0008536]
[1736861186544,0.40150028,96026.0,96025.0,0.0008536]
[1736861187415,0.15132802,96026.0,96025.0,0.0008536]
[1736861188177,0.19780732,96026.0,96025.0,0.0008536]
[1736861188812,0.19176732,96026.0,96025.0,0.0008536]
[1736861189024,0.19780732,96026.0,96025.0,0.0008536]
[1736861189426,0.58745568,96026.0,96025.0,0.0008536]
[1736861189827,0.58141568,96026.0,96025.0,0.0008536]
[1736861190029,0.57241568,96026.0,96025.0,0.0008536]
[1736861190232,0.57845568,96026.0,96025.0,0.0008536]
[1736861190550,0.04936942,96026.0,96025.0,0.0008536]
[1736861190956,0.03304,96026.0,96025.0,0.0008536]
[1736861191449,0.03404,96026.0,96025.0,0.0008536]
[1736861191834,0.03304,96026.0,96025.0,0.0008536]
[1736861192051,0.03404,96026.0,96025.0,0.0008536]
[1736861192656,0.03304,96026.0,96025.0,0.0008536]
[1736861192784,0.11774,96026.0,96025.0,0.0008536]
[1736861192997,0.11374,96026.0,96025.0,0.0008536]
[1736861193411,0.11874,96026.0,96025.0,0.0008536]
[1736861193611,0.03704,96026.0,96025.0,0.0008536]
[1736861194175,0.03404,96026.0,96025.0,0.0008536]
[1736861194412,0.03504,96026.0,96025.0,0.0008536]
[1736861194818,0.56418521,96026.0,96025.0,0.0008536]
[1736861195882,0.37726801,96026.0,96025.0,0.0008536]
[1736861196104,0.37426801,96026.0,96025.0,0.0008536]
[1736861196535,0.38026801,96026.0,96025.0,0.0008536]
[1736861196936,0.03704,96026.0,96025.0,0.0008536]
[1736861197860,0.38026801,96026.0,96025.0,0.0008536]
[1736861198066,0.58854401,96026.0,96025.0,0.0008536]
[1736861198576,0.77454255,96026.0,96025.0,0.0008536]
[1736861199105,0.56626655,96026.0,96025.0,0.0008536]
[1736861199632,0.38026801,96026.0,96025.0,0.0008536]
[1736861200272,0.58854401,96026.0,96025.0,0.0008536]
[1736861200579,0.245316,96026.0,96025.0,0.0008536]
[1736861201178,0.58854401,96026.0,96025.0,0.0008536]
[1736861201761,0.69277093,96026.0,96025.0,0.0008536]
[1736861201972,0.69077093,96026.0,96025.0,0.0008536]
[1736861202192,1.34767093,96026.0,96025.0,0.0008536]
[1736861202391,1.57284153,96026.0,96025.0,0.0008536]
[1736861202520,1.0358,96015.0,96014.0,0.0008534]
[1736861202725,0.4317,96013.0,96012.0,0.0008534]
[1736861202935,0.55892692,96013.0,96012.0,0.0008534]
[1736861203320,0.66315384,96013.0,96012.0,0.0008534]
[1736861203545,0.66919384,96013.0,96012.0,0.0008534]
[1736861204488,0.90215493,96013.0,96012.0,0.0008534]
[1736861204703,0.90215493,96013.0,95984.0,0.0009822]
[1736861204704,0.208352,95991.0,95984.0,0.0009822]
[1736861204879,0.33557892,95991.0,95970.0,0.208396]
[1736861205326,0.48557892,95991.0,95970.0,0.0009932]
[1736861205945,0.48557892,95991.0,95990.0,0.00100544]
[1736861205946,0.48957892,95991.0,95990.0,0.00100544]
[1736861206154,1.01847548,95991.0,95990.0,0.00100544]
[1736861206364,1.02747548,95991.0,95990.0,0.00100544]
[1736861206809,0.49857892,95991.0,95990.0,0.00100544]
[1736861207983,0.48770096,95991.0,95990.0,0.00100544]
[1736861208411,0.63770096,95991.0,95990.0,0.00100544]
[1736861208918,0.49857892,95991.0,95990.0,0.00100544]
[1736861209185,0.50910492,95991.0,95990.0,0.00100544]
[1736861209777,0.50910492,95991.0,95990.0,0.00185894]
[1736861210376,0.83430492,95991.0,95990.0,0.00185894]
[1736861211448,0.83424798,95991.0,95990.0,0.00185894]
[1736861211955,0.68424798,95991.0,95990.0,0.00185894]
[1736861212293,0.83424798,95991.0,95990.0,0.00185894]
[1736861217220,0.84028798,95991.0,95990.0,0.00185894]
[1736861218232,0.83628798,95991.0,95990.0,0.00185894]
[1736861219250,0.82728798,95991.0,95990.0,0.00185894]
[1736861219412,0.3342,95991.0,95990.0,0.00185894]
[1736861219755,0.33624,95991.0,95990.0,0.00185894]
[1736861219963,0.36824,95991.0,95990.0,0.00185894]
[1736861220174,0.36324,95991.0,95990.0,0.00185894]
[1736861220548,0.3612,95991.0,95990.0,0.00185894]
[1736861220759,0.35824,95991.0,95990.0,0.00185894]
[1736861220956,0.35424,95991.0,95990.0,0.00185894]
[1736861221159,0.35824,95991.0,95990.0,0.00185894]
[1736861221316,0.35924,95991.0,95990.0,0.00185894]
[1736861222371,0.37557472,95991.0,95990.0,0.00185894]
[1736861222530,0.37157472,95991.0,95990.0,0.00185894]
[1736861222741,0.37757472,95991.0,95990.0,0.00185894]
[1736861222956,0.46546692,95991.0,95990.0,0.00185894]
[1736861223159,0.46446692,95991.0,95990.0,0.00185894]
[1736861223485,0.46646692,95991.0,95990.0,0.00185894]
[1736861224080,0.61046692,95991.0,95990.0,0.00185894]
[1736861224555,0.61946692,95991.0,95990.0,0.00185894]
[1736861224976,0.61746692,95991.0,95990.0,0.00185894]
[1736861225821,0.60846692,95991.0,95990.0,0.00185894]
[1736861226020,0.61746692,95991.0,95990.0,0.00185894]
[1736861226262,0.6378314,95991.0,95990.0,0.00185894]
[1736861226460,0.65416637,95991.0,95990.0,0.00185894]
[1736861226578,0.65816637,95991.0,95990.0,0.00185894]
[1736861227024,0.65416637,95991.0,95990.0,0.00185894]
[1736861227403,0.6428314,95991.0,95990.0,0.00185894]
[1736861228351,0.7181314,95991.0,95990.0,0.00185894]
[1736861228505,0.8181314,95991.0,95990.0,0.00185894]
[1736861229377,0.8091314,95991.0,95969.0,0.00050505]
[1736861229677,0.023,95969.0,95962.0,2.765e-05]
[1736861229820,0.023,95967.0,95962.0,2.765e-05]
[1736861230022,0.023,95965.0,95962.0,2.765e-05]
[1736861230450,0.023,95965.0,95963.0,0.208413]
[1736861230633,0.023,95965.0,95964.0,0.0765]
[1736861230841,0.023,95965.0,95964.0,0.1245]
[1736861231466,0.023,95965.0,95964.0,0.332911]
[1736861231683,0.023,95977.0,95964.0,0.1245]
[1736861231885,0.023,95973.0,95964.0,0.1245]
[1736861232679,0.32570042,95991.0,95968.0,0.0765]
[1736861232859,0.00608,95990.0,95970.0,0.0765]
[1736861233062,0.00608,95990.0,95972.0,0.048]
[1736861233261,0.00608,95990.0,95977.0,0.208381]
[1736861233615,0.00608,95989.0,95979.0,0.208378]
[1736861233814,0.00608,95989.0,95978.0,0.0765]
[1736861234159,0.023,95987.0,95978.0,0.0765]
[1736861234397,0.023,95985.0,95978.0,0.0765]
[1736861235416,0.023,95983.0,95978.0,0.0765]
[1736861236483,0.027,95983.0,95978.0,0.0765]
[1736861238714,0.028,95983.0,95978.0,0.0765]
[1736861246602,0.028,95983.0,95978.0,0.28488]
[1736861246803,0.028,95983.0,95978.0,0.0765]
[1736861247281,0.028,95983.0,95978.0,0.28488]
[1736861248048,0.028,95983.0,95978.0,0.0765]
[1736861254131,0.028,95983.0,95977.0,0.0008538]
[1736861254576,0.023,95981.0,95977.0,0.0008538]
[1736861256507,0.026,95981.0,95977.0,0.0008538]
[1736861256705,0.023,95979.0,95977.0,0.0008538]
[1736861257256,0.02908,95978.0,95977.0,0.0008538]
[1736861258395,0.02938,95978.0,95977.0,0.0008538]
[1736861260169,0.27446731,95978.0,95977.0,0.0008538]
[1736861260770,0.27246731,95978.0,95977.0,0.0008538]
[1736861260966,0.27446731,95978.0,95977.0,0.0008538]
[1736861261155,0.18138,95978.0,95977.0,0.0008538]
[1736861262062,0.19209718,95978.0,95977.0,0.0008538]
[1736861262750,0.19205718,95978.0,95977.0,0.0008538]
[1736861262854,0.19005718,95978.0,95977.0,0.0008538]
[1736861263347,0.19305718,95978.0,95977.0,0.0008538]
[1736861263734,0.19005718,95978.0,95977.0,0.0008538]
[1736861263888,0.32313922,95978.0,95977.0,0.0008538]
[1736861264081,0.33217922,95978.0,95977.0,0.0008538]
[1736861265394,0.33417922,95978.0,95977.0,0.0008538]
[1736861265777,0.33217922,95978.0,95977.0,0.0008538]
[1736861266077,0.20105718,95978.0,95977.0,0.0008538]
[1736861267214,0.28315718,95978.0,95977.0,0.0008538]
[1736861267643,0.3873841,95978.0,95977.0,0.0008538]
[1736861267816,0.73098244,95978.0,95977.0,0.0008538]
[1736861268051,0.73098244,95978.0,95959.0,0.00050505]
[1736861268052,0.381413,95963.0,95959.0,0.00050505]
[1736861268253,0.308435,95953.0,95935.0,0.18671508]
[1736861268382,0.59170192,95953.0,95935.0,0.18671508]
[1736861268590,0.91690192,95953.0,95935.0,0.18671508]
[1736861268786,1.12112884,95953.0,95935.0,0.18671508]
[1736861268990,1.12112884,95953.0,95928.0,0.0008534]
[1736861269193,0.15,95941.0,95928.0,0.00057392]
[1736861269394,0.208485,95930.0,95928.0,0.00057392]
[1736861269654,0.35422692,95929.0,95928.0,0.00057392]
[1736861269855,0.37722692,95929.0,95928.0,0.00057392]
[1736861270058,0.27722692,95929.0,95928.0,0.00057392]
[1736861270263,0.37722692,95929.0,95928.0,0.00057392]
[1736861270954,0.51644307,95929.0,95928.0,0.00057392]
[1736861271169,0.52248307,95929.0,95928.0,0.00057392]
[1736861271317,0.2,95919.0,95917.0,0.014571]
[1736861271516,0.208548,95901.0,95898.0,2.084e-05]
[1736861271745,0.463652,95899.0,95898.0,2.084e-05]
[1736861271953,0.56787892,95899.0,95898.0,2.084e-05]
[1736861272350,0.387592,95899.0,95898.0,2.084e-05]
[1736861272727,0.0065398,95899.0,95898.0,2.084e-05]
[1736861273136,0.0004998,95899.0,95898.0,2.084e-05]
[1736861273535,0.0155398,95899.0,95898.0,2.084e-05]
[1736861273737,0.0195398,95899.0,95898.0,2.084e-05]
[1736861273943,0.0105398,95899.0,95898.0,2.084e-05]
[1736861274307,0.0044998,95899.0,95898.0,2.084e-05]
[1736861274503,0.0105398,95899.0,95898.0,2.084e-05]
[1736861274707,0.0105398,95899.0,95898.0,0.20857484]
[1736861275292,0.0004998,95899.0,95898.0,0.50121593]
[1736861275471,0.0094998,95899.0,95898.0,0.54937334]
[1736861275645,0.0024998,95899.0,95898.0,0.54937334]
[1736861275970,0.0004998,95899.0,95898.0,0.55022694]
[1736861277142,0.0014998,95899.0,95898.0,0.55022694]
[1736861278027,0.0014998,95899.0,95898.0,0.45022694]
[1736861279086,0.0004998,95899.0,95898.0,0.45022694]
[1736861279479,0.0014998,95899.0,95898.0,0.45022694]
[1736861281199,0.0014998,95899.0,95898.0,0.01154602]
[1736861281400,0.0014998,95899.0,95898.0,0.00087444]
[1736861282222,0.0014998,95899.0,95898.0,0.10510136]
[1736861282436,0.0014998,95899.0,95898.0,0.10614404]
[1736861282640,0.0075398,95899.0,95898.0,0.10614404]
[1736861282778,0.0065398,95899.0,95898.0,0.10510136]
[1736861282977,0.0075398,95899.0,95898.0,0.10510136]
[1736861283927,0.0065398,95899.0,95898.0,0.10510136]
[1736861288405,0.00833342,95899.0,95898.0,0.10510136]
[1736861290159,0.00833342,95899.0,95898.0,0.09510136]
[1736861290826,0.00773342,95899.0,95898.0,0.09510136]
[1736861295468,0.023,95898.0,95874.0,0.00013422]
[1736861295683,0.00773342,95899.0,95876.0,0.01058281]
[1736861295869,0.208555,95898.0,95876.0,0.01058281]
[1736861296070,0.023,95897.0,95876.0,0.01058281]
[1736861296308,0.231559,95896.0,95876.0,0.01058281]
[1736861297073,0.237919,95896.0,95876.0,0.01058281]
[1736861297818,0.02936,95896.0,95882.0,0.2094418]
[1736861298018,0.00179362,95899.0,95890.0,0.00117494]
[1736861298220,0.00636,95898.0,95895.0,0.01377766]
[1736861298425,0.00636,95898.0,95895.0,0.00326997]
[1736861299147,0.007,95896.0,95895.0,0.00326997]
[1736861299358,0.001,95896.0,95895.0,0.00326997]
[1736861299765,0.00636,95897.0,95895.0,0.00326997]
[1736861300236,0.00679362,95899.0,95896.0,0.31278592]
[1736861300408,0.00636,95898.0,95896.0,0.31278592]
[1736861301188,0.00179362,95899.0,95896.0,0.31278592]
[1736861301189,0.00636,95897.0,95896.0,0.31278592]
[1736861302803,0.00179362,95899.0,95896.0,0.31278592]
[1736861302804,0.00179362,95899.0,95896.0,0.52134492]
[1736861303300,0.00636,95898.0,95896.0,0.31278592]
[1736861305128,0.00636,95898.0,95896.0,0.31278392]
[1736861305551,0.00636,95898.0,95896.0,0.10422692]
[1736861305731,0.00179362,95899.0,95896.0,0.31278492]
[1736861305946,0.00636,95898.0,95896.0,0.31278492]
[1736861306338,0.00179362,95899.0,95896.0,0.31278492]
[1736861306545,0.00636,95898.0,95896.0,0.31278492]
[1736861307159,0.00179362,95899.0,95896.0,0.41278492]
[1736861307384,0.00179362,95899.0,95898.0,0.208554]
[1736861307605,0.00179362,95899.0,95898.0,0.41382341]
[1736861307787,0.00179362,95899.0,95898.0,0.41278092]
[1736861308500,0.00279362,95899.0,95898.0,0.41278092]
[1736861308698,0.00179362,95899.0,95898.0,0.41278092]
[1736861309722,0.00815362,95899.0,95898.0,0.41278092]
[1736861309921,0.00815362,95899.0,95898.0,0.31278092]
[1736861310127,0.00815362,95899.0,95898.0,0.10422692]
[1736861310722,0.00815362,95899.0,95898.0,0.10526952]
[1736861311570,0.00815362,95899.0,95898.0,0.20526952]
[1736861312079,0.00815362,95899.0,95898.0,0.20726952]
[1736861312863,6.2e-07,95899.0,95898.0,0.20726952]
[1736861313041,6.2e-07,95899.0,95898.0,0.20622692]
[1736861313934,6.2e-07,95899.0,95898.0,0.10622692]
[1736861314137,6.2e-07,95899.0,95898.0,0.20422692]
[1736861314656,0.00100062,95899.0,95898.0,0.20722692]
[1736861315154,6.2e-07,95899.0,95898.0,0.20526929]
[1736861315355,0.00100062,95899.0,95898.0,0.20826929]
[1736861315563,0.00200062,95899.0,95898.0,0.20826929]
[1736861315765,0.00100062,95899.0,95898.0,0.20826929]
[1736861316166,0.00200062,95899.0,95898.0,0.20826929]
[1736861316622,0.00200062,95899.0,95898.0,0.20722692]
[1736861316854,0.00200062,95899.0,95898.0,0.20826929]
[1736861317887,6.2e-07,95899.0,95898.0,0.20826929]
[1736861320153,6.2e-07,95899.0,95898.0,0.20722692]
[1736861320341,6.2e-07,95899.0,95898.0,0.20826929]
[1736861320833,0.00136062,95909.0,95908.0,0.208533]
[1736861321018,0.00136062,95909.0,95908.0,0.31380228]
[1736861321223,0.00136062,95909.0,95908.0,0.31275992]
[1736861321805,0.00628,95909.0,95908.0,0.31275992]
[1736861322116,0.00728,95909.0,95908.0,0.31675992]
[1736861323327,0.00728,95909.0,95908.0,0.41675992]
[1736861323527,0.00678,95909.0,95908.0,0.41675992]
[1736861324296,0.001,95909.0,95908.0,0.41675992]
[1736861326480,0.001,95909.0,95908.0,0.42736627]
[1736861329325,0.001,95909.0,95908.0,0.32736627]
[1736861330666,0.023,95934.0,95914.0,0.208518]
[1736861330840,0.023,95932.0,95914.0,0.208518]
[1736861330981,0.00628,95933.0,95920.0,0.208505]
[1736861331177,0.00628,95933.0,95915.0,0.10526935]
[1736861331382,0.00628,95933.0,95916.0,0.208515]
[1736861331628,0.00628,95933.0,95921.0,0.208504]
[1736861332006,0.00628,95933.0,95917.0,0.10526929]
[1736861332007,0.00628,95933.0,95919.0,0.208507]
[1736861332178,0.00828,95933.0,95919.0,0.31273392]
[1736861332541,0.01328,95933.0,95919.0,0.31273392]
[1736861332754,0.00628,95933.0,95920.0,0.208507]
[1736861332954,0.00828,95933.0,95921.0,0.00104236]
[1736861333219,0.01328,95933.0,95921.0,0.20954636]
[1736861333404,0.00828,95933.0,95921.0,0.208504]
[1736861333607,0.01328,95933.0,95921.0,0.208504]
[1736861334386,0.01128,95933.0,95925.0,0.208496]
[1736861334611,0.0062,95932.0,95928.0,0.208488]
[1736861334811,0.0062,95932.0,95928.0,0.20953031]
[1736861335013,0.002,95933.0,95932.0,0.208481]
[1736861335217,0.002,95933.0,95932.0,0.5637501]
[1736861335416,0.09272964,95942.0,95941.0,0.208461]
[1736861335587,0.09272964,95942.0,95941.0,0.31268792]
[1736861335957,0.0062,95951.0,95941.0,0.10437689]
[1736861336110,0.0062,95951.0,95950.0,0.208441]
[1736861336313,0.0062,95951.0,95950.0,0.31266792]
[1736861336530,0.09272964,95970.0,95957.0,0.208424]
[1736861336720,0.0062,95951.0,95950.0,0.31266792]
[1736861336919,0.09272964,95970.0,95960.0,0.20842]
[1736861337125,0.0062,95969.0,95948.0,0.208446]
[1736861337320,0.023,95968.0,95948.0,0.32297439]
[1736861337496,0.023,95968.0,95953.0,0.208433]
[1736861337960,0.023,95973.0,95949.0,0.208444]
[1736861338122,0.00209257,95978.0,95952.0,0.208436]
[1736861338330,0.023,95971.0,95952.0,0.208436]
[1736861338764,0.008,95968.0,95952.0,0.208436]
[1736861338959,0.023,95967.0,95949.0,0.31267092]
[1736861339372,0.023,95971.0,95949.0,0.31267092]
[1736861339853,0.035,95971.0,95949.0,0.31267092]
[1736861340255,0.15,95959.0,95941.0,0.00014997]
[1736861340457,0.023,95958.0,95942.0,0.208459]
[1736861340701,0.023,95958.0,95941.0,0.00014997]
[1736861340911,0.208426,95957.0,95941.0,0.00014997]
[1736861341117,0.173,95956.0,95941.0,0.00014997]
[1736861341700,0.208431,95955.0,95941.0,0.00014997]
[1736861341878,0.023,95954.0,95941.0,0.00014997]
[1736861342718,0.208404,95968.0,95942.0,0.10422692]
[1736861342941,0.003,95956.0,95949.0,0.208442]
[1736861343251,0.023,95964.0,95949.0,0.208442]
[1736861343401,0.023,95964.0,95950.0,0.208441]
[1736861343610,0.002,95954.0,95950.0,0.416882]
[1736861343816,0.002,95954.0,95950.0,0.208441]
[1736861344075,0.002,95954.0,95948.0,0.208445]
[1736861344830,0.002,95954.0,95951.0,0.208439]
[1736861345072,0.023,95967.0,95951.0,0.208439]
[1736861345253,0.023,95965.0,95951.0,0.208439]
[1736861345456,0.023,95963.0,95951.0,0.208439]
[1736861345862,0.208404,95968.0,95945.0,0.21894144]
[1736861345863,0.208389,95974.0,95952.0,0.10526898]
[1736861346106,0.002,95954.0,95953.0,0.208435]
[1736861346313,0.002,95964.0,95959.0,0.20842]
[1736861346838,0.002,95964.0,95954.0,0.00104199]
[1736861346839,0.006,95967.0,95957.0,0.208426]
[1736861347188,0.01734296,95963.0,95962.0,0.208415]
[1736861347396,0.01734296,95963.0,95962.0,0.31264192]
[1736861347522,0.09482221,95978.0,95962.0,0.31264192]
[1736861347862,0.09482221,95978.0,95963.0,0.10422692]
[1736861347863,0.00209257,95978.0,95963.0,0.10422692]
[1736861348099,0.00209257,95978.0,95973.0,0.20839]
[1736861348299,0.01634143,95975.0,95970.0,0.208397]
[1736861348524,0.01634143,95975.0,95958.0,0.01060051]
[1736861348674,0.01634143,95975.0,95963.0,0.208411]
[1736861348878,0.01634143,95975.0,95965.0,0.208409]
[1736861349082,0.01634143,95975.0,95965.0,0.31263592]
[1736861349259,0.01634143,95975.0,95965.0,0.10422692]
[1736861349461,0.01634143,95975.0,95965.0,0.00014997]
[1736861349660,0.005,95975.0,95965.0,0.00014997]
[1736861350240,0.01,95975.0,95965.0,0.00014997]
[1736861351000,0.012,95975.0,95965.0,0.00014997]
[1736861351376,0.002,95975.0,95965.0,0.01044504]
[1736861351630,0.439778,95974.0,95965.0,0.00014997]
[1736861351819,0.002,95975.0,95970.0,0.208396]
[1736861351976,0.007,95975.0,95967.0,0.208404]
[1736861352632,0.00209257,95978.0,95967.0,0.208404]
[1736861352831,0.001,95974.0,95967.0,0.208404]
[1736861353231,0.00209257,95978.0,95967.0,0.208404]
[1736861353665,0.002,95975.0,95967.0,0.208404]
[1736861354093,0.00209257,95978.0,95966.0,0.10422692]
[1736861354268,0.023,95977.0,95965.0,0.00014997]
[1736861354569,0.231384,95977.0,95965.0,0.00014997]
[1736861354744,0.005,95975.0,95967.0,0.208404]
[1736861354947,0.01634084,95976.0,95968.0,0.10526872]
[1736861355209,0.00209257,95978.0,95968.0,0.10422692]
[1736861355388,0.00809257,95978.0,95968.0,0.10422692]
[1736861355587,0.001,95974.0,95968.0,0.10422692]
[1736861355763,0.001,95974.0,95969.0,0.2084]
[1736861355967,0.023,95977.0,95965.0,0.00014997]
[1736861356357,0.002,95976.0,95965.0,0.00014997]
[1736861356558,0.023,95975.0,95965.0,0.00014997]
[1736861356984,0.023,95968.0,95965.0,0.00014997]
[1736861357255,0.023,95966.0,95965.0,0.00014997]
[1736861358439,0.023,95968.0,95965.0,0.00014997]
[1736861358643,0.001,95966.0,95965.0,0.00014997]
[1736861358840,0.208391,95974.0,95965.0,0.00014997]
[1736861358841,0.002,95975.0,95965.0,0.10437689]
[1736861359040,0.002,95975.0,95974.0,0.208389]
[1736861359287,0.002,95975.0,95972.0,0.208393]
[1736861359541,0.002,95975.0,95972.0,0.416786]
[1736861359737,0.002,95975.0,95972.0,0.208393]
[1736861360140,0.00179257,95983.0,95972.0,0.208393]
[1736861360676,0.003,95968.0,95967.0,0.208404]
[1736861360881,0.003,95968.0,95967.0,0.31263092]
[1736861361617,0.006,95966.0,95965.0,0.00014997]
[1736861361833,0.006,95966.0,95965.0,0.10437689]
[1736861362033,0.001,95975.0,95965.0,0.10437689]
[1736861362644,0.00179257,95983.0,95965.0,0.10437689]
[1736861362874,0.003,95966.0,95965.0,0.10437689]
[1736861364410,0.001,95975.0,95966.0,0.208407]
[1736861364708,0.006,95975.0,95966.0,0.208407]
[1736861364865,0.00179257,95983.0,95966.0,0.208407]
[1736861365066,0.00179257,95983.0,95968.0,0.12519319]
[1736861365295,0.00179257,95983.0,95974.0,0.208389]
[1736861365505,0.00179257,95983.0,95975.0,0.10526866]
[1736861366098,0.00309257,95978.0,95976.0,0.208385]
[1736861366272,0.00309257,95978.0,95977.0,0.10422692]
[1736861366477,0.00209257,95978.0,95977.0,0.10422692]
[1736861367302,0.00209257,95978.0,95977.0,0.09987658]
[1736861367508,0.02043199,95978.0,95977.0,0.09987658]
[1736861367710,0.01843199,95978.0,95977.0,0.09883488]
[1736861368925,0.01843199,95978.0,95977.0,0.09983488]
[1736861369119,0.01843199,95978.0,95977.0,0.11032353]
[1736861369749,0.00209257,95978.0,95977.0,0.11032353]
[1736861369896,0.00209257,95978.0,95977.0,0.11136523]
[1736861370498,0.00209257,95978.0,95977.0,0.11032353]
[1736861371532,0.00209257,95978.0,95977.0,0.10932353]
[1736861371887,0.00209257,95978.0,95977.0,0.11032353]
[1736861372202,0.00209257,95978.0,95977.0,0.09983488]
[1736861372442,0.00209257,95978.0,95977.0,0.09883488]
[1736861372647,0.00209257,95978.0,95977.0,0.09983488]
[1736861372849,0.00209257,95978.0,95977.0,0.19983488]
[1736861373069,0.00209257,95978.0,95977.0,0.10087646]
[1736861373270,0.00209257,95978.0,95977.0,0.09987646]
[1736861373436,0.00209257,95978.0,95977.0,0.09883488]
[1736861374038,0.00209257,95978.0,95977.0,0.0998766]
[1736861374673,0.00209257,95978.0,95977.0,0.09883488]
[1736861374824,0.00209257,95978.0,95977.0,0.09987659]
[1736861375020,0.00209257,95978.0,95977.0,0.10087659]
[1736861375224,0.00209257,95978.0,95977.0,0.09983488]
[1736861375747,0.00209257,95978.0,95977.0,0.002]
[1736861375911,0.00209257,95978.0,95977.0,0.003]
[1736861377090,0.00209257,95978.0,95977.0,0.001]
[1736861377547,0.00509257,95978.0,95977.0,0.001]
[1736861377749,0.00509257,95978.0,95976.0,0.208383]
[1736861378155,0.00509257,95978.0,95977.0,0.10422692]
[1736861378697,0.00509257,95978.0,95972.0,0.208393]
[1736861378933,0.00509257,95978.0,95974.0,0.416778]
[1736861379133,0.00509257,95978.0,95976.0,0.208385]
[1736861379466,0.00509257,95978.0,95977.0,0.10422692]
[1736861380261,0.00209257,95978.0,95977.0,0.10422692]